bitfinex-derivatives/quotes_ETHF0:USTF0_20260303
["timestamp","ask_amount","ask_price","bid_price","bid_amount"]
[1772560405012,1.3917748,1985.5,1984.8,1.40403075]
[1772560406012,1.3917748,1985.3,1984.4,6.601]
[1772560406215,1.3917748,1985.3,1984.3,1.39879881]
[1772560406409,0.49239323,1985.4,1983.8,0.25202]
[1772560406410,1.3917748,1985.1,1983.9,1.39879881]
[1772560406610,1.3917748,1984.9,1984.0,1.39879881]
[1772560406812,1.3917748,1984.7,1983.8,1.39879881]
[1772560407010,1.3917748,1984.5,1983.8,1.40245292]
[1772560407215,1.39781134,1984.5,1983.8,1.40245292]
[1772560407610,1.39781134,1984.5,1983.8,0.00365411]
[1772560408012,1.3917748,1984.3,1983.4,1.39879881]
[1772560409113,1.3917748,1984.3,1983.4,1.40322348]
[1772560409914,1.3917748,1984.3,1983.4,0.00442467]
[1772560410113,1.3917748,1984.1,1983.2,1.39879881]
[1772560410814,0.00603654,1984.5,1983.5,1.39879881]
[1772560411015,1.39781134,1984.5,1983.5,1.40353932]
[1772560412915,1.3917748,1984.2,1982.8,1.39879881]
[1772560413114,1.3917748,1984.0,1982.8,1.39879881]
[1772560413315,1.3917748,1984.0,1983.0,1.39879881]
[1772560413920,1.3917748,1984.0,1983.0,1.40287173]
[1772560414720,1.3917748,1984.0,1983.1,1.39879881]
[1772560416818,1.3917748,1984.0,1983.0,0.00407292]
[1772560417621,1.3917748,1984.0,1983.0,1.40287173]
[1772560418923,1.3917748,1983.7,1982.5,1.39879881]
[1772560419223,1.3917748,1983.5,1982.1,1.39879881]
[1772560419624,1.3917748,1983.5,1982.2,1.39879881]
[1772560419919,1.3917748,1983.5,1982.4,1.39879881]
[1772560420322,6.605,1983.6,1982.6,1.39879881]
[1772560420524,1.3917748,1983.7,1982.8,1.39879881]
[1772560420723,1.3917748,1983.9,1983.0,1.39879881]
[1772560421121,6.605,1984.0,1983.2,1.39879881]
[1772560421326,1.3917748,1984.1,1983.2,1.39879881]
[1772560422821,1.3917748,1984.1,1983.3,0.25209]
[1772560423024,1.3917748,1984.1,1983.4,1.39879881]
[1772560423227,1.3917748,1984.3,1983.6,1.39879881]
[1772560423422,1.3917748,1984.3,1983.6,1.40272863]
[1772560423623,1.3917748,1984.3,1983.6,0.00392982]
[1772560423817,1.3917748,1984.3,1983.0,0.25212]
[1772560423818,1.3917748,1984.3,1983.2,1.39879881]
[1772560425026,1.3917748,1984.3,1983.2,1.40472969]
[1772560426328,1.6437448,1984.3,1983.2,0.00593088]
[1772560429230,1.35337566,1984.1,1983.2,0.00593088]
[1772560430333,1.35337566,1983.9,1982.7,1.34362908]
[1772560430534,1.35337566,1983.7,1982.7,1.34362908]
[1772560431331,1.35337566,1983.7,1982.7,1.34738606]
[1772560434136,1.35337566,1983.5,1982.7,0.00375698]
[1772560434437,1.35337566,1983.3,1982.7,1.34738606]
[1772560435134,1.35337566,1983.3,1982.7,0.00375698]
[1772560435332,6.607,1983.4,1982.1,1.34362908]
[1772560435333,1.35337566,1983.1,1982.1,1.34362908]
[1772560435532,6.3916354,1983.2,1982.1,1.34362908]
[1772560435533,1.35337566,1982.9,1982.1,1.34362908]
[1772560435730,1.35337566,1982.7,1981.9,1.34362908]
[1772560435928,6.607,1982.6,1981.9,1.34362908]
[1772560436129,6.607,1982.6,1981.4,1.34362908]
[1772560436130,1.35337566,1982.4,1981.4,1.34362908]
[1772560436329,1.35337566,1982.2,1981.4,1.34917938]
[1772560436634,1.35337566,1982.0,1981.4,0.0055503]
[1772560437039,1.35337566,1982.0,1981.4,1.34917938]
[1772560437641,6.607,1982.1,1981.4,1.34917938]
[1772560437841,7.96037566,1982.1,1981.4,1.34917938]
[1772560438442,0.00613282,1982.4,1981.4,1.60150938]
[1772560438741,0.00613282,1982.4,1981.9,1.34362908]
[1772560439039,6.609,1982.8,1981.9,1.34362908]
[1772560439441,1.35337566,1982.9,1981.9,1.34362908]
[1772560439848,1.35758887,1982.9,1981.9,1.34362908]
[1772560440934,1.35758887,1982.9,1982.1,1.34362908]
[1772560442438,0.00421321,1982.9,1982.1,1.34362908]
[1772560442638,0.00421321,1982.9,1981.7,15.56480116]
[1772560442639,0.00421321,1982.9,1982.3,1.34362908]
[1772560442837,0.00421321,1982.9,1982.0,1.34362908]
[1772560442838,1.35758887,1982.9,1982.0,1.34362908]
[1772560443035,1.35337566,1982.8,1982.0,1.34362908]
[1772560444340,6.61421321,1982.9,1982.0,1.34362908]
[1772560444641,0.00421321,1982.9,1982.2,1.34362908]
[1772560444838,1.35337566,1982.7,1981.9,1.34362908]
[1772560445038,1.35337566,1982.7,1981.4,6.6155503]
[1772560445236,1.35337566,1982.6,1981.5,1.34362908]
[1772560445440,0.00421321,1982.9,1982.0,1.34362908]
[1772560445640,0.00421321,1982.9,1982.2,1.34362908]
[1772560446341,1.35758887,1982.9,1982.2,1.34362908]
[1772560446640,0.00421321,1982.9,1982.2,1.34362908]
[1772560446841,1.35337566,1983.7,1982.7,1.59578908]
[1772560447842,1.3595655,1983.7,1982.7,1.59578908]
[1772560448144,1.35337566,1984.3,1983.2,1.34362908]
[1772560448534,1.35337566,1984.1,1983.2,1.34362908]
[1772560449135,1.35934609,1984.1,1983.2,1.34785177]
[1772560450847,1.35337566,1983.9,1982.8,1.34362908]
[1772560451850,0.00597043,1984.1,1983.2,1.34362908]
[1772560452045,0.00597043,1984.1,1983.4,1.34362908]
[1772560453148,1.35934609,1984.1,1983.4,1.34362908]
[1772560454350,1.35934609,1984.1,1983.2,1.34822155]
[1772560454946,0.00597043,1984.1,1983.2,1.60031155]
[1772560455351,1.35934609,1984.1,1983.2,1.34822155]
[1772560457955,1.35934609,1984.1,1982.8,1.27328372]
[1772560457956,1.37545877,1983.7,1982.8,1.27328372]
[1772560458152,1.37545877,1983.5,1982.8,1.27328372]
[1772560458857,1.37545877,1983.5,1982.2,1.27328372]
[1772560459053,4.37703993,1983.5,1982.8,0.00581193]
[1772560459254,1.37545877,1983.4,1982.8,0.00581193]
[1772560460560,1.37545877,1983.4,1982.4,1.35813502]
[1772560460760,1.38143605,1983.2,1982.2,1.35813502]
[1772560460959,1.38143605,1983.0,1982.2,1.35813502]
[1772560461358,1.38143605,1983.0,1981.7,1.35813502]
[1772560461654,1.38143605,1982.5,1981.7,1.36190883]
[1772560461855,1.38143605,1982.3,1981.7,0.00377381]
[1772560462054,1.38143605,1982.3,1981.5,1.35813502]
[1772560462455,1.38143605,1982.3,1981.2,1.35813502]
[1772560463157,1.38143605,1982.3,1981.2,1.36222543]
[1772560463656,1.38143605,1982.2,1981.2,1.36222543]
[1772560463860,2.74951116,1982.3,1981.2,0.00409041]
[1772560463861,1.38143605,1981.9,1981.2,0.00409041]
[1772560464055,7.99043605,1981.8,1981.2,0.00409041]
[1772560464663,6.609,1982.1,1981.2,1.36222543]
[1772560464958,6.609,1982.4,1981.2,1.36222543]
[1772560465157,6.609,1982.4,1981.4,1.35813502]
[1772560465354,1.38578041,1982.5,1981.4,1.35813502]
[1772560465562,1.38578041,1982.5,1981.6,1.35813502]
[1772560465563,0.00434436,1982.5,1981.6,1.35813502]
[1772560466350,1.38578041,1982.5,1981.6,1.35813502]
[1772560467157,0.00434436,1982.5,1981.6,1.35813502]
[1772560467362,1.38143605,1983.0,1981.8,1.35813502]
[1772560467661,7.99143605,1983.5,1982.2,1.35813502]
[1772560467856,1.38143605,1983.5,1982.2,1.35813502]
[1772560468459,1.38681396,1983.5,1982.4,1.35813502]
[1772560469166,1.38143605,1983.3,1982.4,1.35813502]
[1772560469465,1.38143605,1983.3,1981.8,0.25228]
[1772560469665,1.38143605,1983.1,1981.9,1.35813502]
[1772560469865,1.38143605,1982.9,1981.9,1.35813502]
[1772560472060,1.38143605,1982.8,1981.9,1.35813502]
[1772560472265,1.38143605,1982.8,1981.4,1.35813502]
[1772560472464,1.38143605,1982.5,1981.4,1.35813502]
[1772560472669,1.38143605,1982.3,1981.4,1.35813502]
[1772560474062,1.38143605,1982.2,1981.4,1.35813502]
[1772560474268,1.38143605,1982.2,1981.2,1.36222543]
[1772560474469,1.38143605,1982.2,1981.2,0.00409041]
[1772560475069,1.38143605,1982.2,1981.2,1.36222543]
[1772560475370,1.38143605,1981.3,1980.0,1.61064502]
[1772560475575,1.38143605,1981.0,1979.8,1.35813502]
[1772560475869,1.38143605,1980.7,1979.8,1.35813502]
[1772560476069,1.38143605,1981.1,1980.0,1.35813502]
[1772560476270,1.38758641,1981.1,1980.0,1.36169718]
[1772560476468,0.00615036,1981.1,1980.2,1.35813502]
[1772560478167,1.38143605,1981.0,1980.2,1.35813502]
[1772560478581,0.00615036,1981.1,1980.2,1.35813502]
[1772560480274,1.38758641,1981.1,1980.2,1.35813502]
[1772560482975,1.38143605,1981.0,1980.0,1.36169718]
[1772560485272,1.38143605,1980.4,1979.6,1.35813502]
[1772560485476,1.38143605,1980.2,1978.9,1.35813502]
[1772560485778,1.38143605,1980.4,1979.2,1.61074502]
[1772560486174,7.99643605,1980.6,1979.4,0.25259]
[1772560486377,7.99643605,1980.6,1979.5,1.35813502]
[1772560486771,1.38143605,1980.8,1979.9,1.35813502]
[1772560487579,1.38758641,1981.1,1979.9,1.35813502]
[1772560487879,1.38143605,1981.0,1979.9,1.35813502]
[1772560488276,1.38143605,1981.0,1979.6,6.615]
[1772560488277,1.38143605,1981.0,1980.1,1.36170587]
[1772560489675,1.38143605,1981.0,1979.6,1.36170587]
[1772560489877,1.38143605,1981.0,1979.8,1.36170587]
[1772560493182,1.38143605,1981.0,1980.0,1.36170587]
[1772560493680,0.00615036,1981.1,1980.2,1.36170587]
[1772560493881,1.27172801,1981.1,1980.2,1.36170587]
[1772560496391,0.00615036,1981.1,1980.6,1.36170587]
[1772560496592,0.00615036,1981.1,1980.6,1.36623005]
[1772560497189,1.27172801,1981.1,1980.6,0.00452418]
[1772560497491,0.00615036,1981.1,1980.6,1.36623005]
[1772560497693,2.74951116,1981.7,1980.8,1.36170587]
[1772560497694,1.26557765,1981.7,1980.8,1.36170587]
[1772560498290,7.88257765,1981.9,1980.9,0.2524]
[1772560498485,1.26557765,1981.7,1981.0,1.36170587]
[1772560498691,0.00355894,1981.7,1981.0,1.36170587]
[1772560499093,1.26913659,1981.7,1981.0,1.36170587]
[1772560500092,0.00355894,1981.7,1981.0,1.36170587]
[1772560500396,0.00355894,1981.7,1981.2,1.36170587]
[1772560500591,1.26913659,1981.7,1981.2,1.36170587]
[1772560500792,1.26913659,1981.7,1980.7,1.36170587]
[1772560501193,7.40468884,1981.6,1980.9,1.36170587]
[1772560501393,1.26557765,1981.6,1980.9,1.36170587]
[1772560502596,6.14642288,1981.5,1980.9,1.36170587]
[1772560502796,1.26557765,1981.6,1980.9,1.36170587]
[1772560503201,6.15013529,1981.5,1980.9,1.36170587]
[1772560503395,1.26913659,1981.7,1980.9,1.36170587]
[1772560503594,7.41550701,1981.6,1980.9,1.36170587]
[1772560503795,1.26557765,1981.6,1980.9,1.36170587]
[1772560504197,6.15259017,1981.5,1980.9,1.36170587]
[1772560504798,1.26557765,1981.4,1980.6,0.00452418]
[1772560505099,1.26557765,1981.2,1980.6,0.00452418]
[1772560505401,1.26557765,1981.0,1980.3,1.36170587]
[1772560505800,5.45495531,1981.2,1980.3,1.61417587]
[1772560506009,6.15684303,1981.1,1980.3,1.61417587]
[1772560506304,1.26557765,1981.0,1980.3,1.36597392]
[1772560507100,7.42239571,1980.9,1980.3,1.36597392]
[1772560507301,1.26557765,1980.9,1980.3,1.36597392]
[1772560507497,7.422452,1980.8,1980.3,1.36597392]
[1772560507701,1.26557765,1980.8,1980.3,1.36597392]
[1772560508002,1.26557765,1981.0,1980.3,1.36597392]
[1772560508204,7.422452,1980.9,1980.3,1.36597392]
[1772560508398,7.422452,1980.8,1980.3,1.36597392]
[1772560508605,1.26557765,1980.7,1980.3,0.00426805]
[1772560508800,1.26557765,1981.0,1980.3,1.36597392]
[1772560509004,1.26557765,1980.9,1980.3,1.36597392]
[1772560509199,1.26557765,1980.7,1979.9,1.36170587]
[1772560509405,1.26557765,1980.3,1979.3,1.61429587]
[1772560509604,12.07095531,1980.5,1979.6,1.36170587]
[1772560509800,6.1583605,1980.4,1979.8,1.36170587]
[1772560510205,1.27082485,1980.4,1979.8,1.36556544]
[1772560510705,1.27082485,1980.4,1979.8,0.00385957]
[1772560512202,0.0052472,1980.4,1979.8,1.36556544]
[1772560512802,1.27082485,1980.4,1979.8,1.36556544]
[1772560513003,0.0052472,1980.4,1979.8,1.36556544]
[1772560513405,1.26557765,1981.0,1980.0,1.36170587]
[1772560513604,1.51798765,1980.8,1979.8,0.00385957]
[1772560513807,1.26557765,1980.6,1979.8,0.00385957]
[1772560514009,1.26557765,1980.4,1979.8,0.00385957]
[1772560514407,1.27027821,1980.4,1979.8,0.00385957]
[1772560515106,0.00470056,1980.4,1979.8,1.36556544]
[1772560516906,1.27027821,1980.4,1979.8,1.36556544]
[1772560517100,0.00470056,1980.4,1979.8,1.36556544]
[1772560517302,0.00470056,1980.4,1979.8,1.61810544]
[1772560517510,1.26557765,1980.8,1979.8,1.61810544]
[1772560518604,1.27177526,1980.8,1979.8,1.61810544]
[1772560519611,0.00619761,1980.8,1980.1,1.31544525]
[1772560519812,0.00619761,1980.8,1980.3,1.28826339]
[1772560520212,0.00619761,1980.8,1979.8,0.00385957]
[1772560520213,1.26468238,1980.8,1979.8,1.29212296]
[1772560520404,1.26468238,1980.8,1978.6,11.68783599]
[1772560520405,10.48247204,1980.8,1978.6,11.68783599]
[1772560520612,10.48247204,1980.8,1978.6,1.28826339]
[1772560520613,1.25848477,1979.7,1978.6,1.28826339]
[1772560520809,1.25848477,1979.4,1978.6,1.28826339]
[1772560521109,6.26707618,1979.3,1978.6,1.28826339]
[1772560521405,0.00564685,1979.3,1978.6,1.29216501]
[1772560522209,1.25848477,1979.8,1978.8,1.28826339]
[1772560522409,6.36107105,1979.7,1978.8,1.28826339]
[1772560522609,7.61955582,1979.7,1978.8,1.28826339]
[1772560522811,1.25848477,1979.7,1978.8,1.28826339]
[1772560523013,7.61946928,1979.6,1978.8,1.28826339]
[1772560523213,1.26437092,1979.6,1978.8,1.28826339]
[1772560523615,1.25848477,1979.4,1978.6,1.29216501]
[1772560525611,1.25848477,1979.4,1978.6,0.00390162]
[1772560526207,1.25848477,1979.4,1977.8,1.28826339]
[1772560526416,0.25263,1979.1,1977.8,1.28826339]
[1772560526717,1.25848477,1978.9,1977.8,1.28826339]
[1772560527014,1.25848477,1978.9,1978.0,1.28826339]
[1772560527216,1.25848477,1978.9,1978.0,1.29214686]
[1772560529528,1.25848477,1978.9,1978.0,0.00388347]
[1772560529718,1.25848477,1978.8,1977.6,1.28826339]
[1772560530121,2.75203414,1978.9,1977.6,1.28826339]
[1772560530122,1.25848477,1978.6,1977.6,1.28826339]
[1772560530424,1.25848477,1978.4,1977.0,1.28826339]
[1772560530624,1.25848477,1978.2,1977.0,1.28826339]
[1772560530820,1.26448665,1978.2,1977.0,1.29346483]
[1772560531822,1.25848477,1977.6,1976.4,1.28826339]
[1772560532029,1.25848477,1977.4,1976.4,1.28826339]
[1772560532924,1.25848477,1977.4,1976.4,1.29187474]
[1772560534425,1.25848477,1977.5,1976.4,1.29187474]
[1772560535735,1.25848477,1977.5,1975.1,6.22703]
[1772560535736,1.25848477,1977.2,1976.0,1.28826339]
[1772560535933,1.25848477,1977.0,1976.0,1.28826339]
[1772560536271,1.25848477,1976.2,1974.7,1.28826339]
[1772560536429,1.25848477,1976.1,1975.1,1.28826339]
[1772560536628,7.88048477,1976.3,1975.4,0.2531]
[1772560536834,0.00368776,1976.3,1975.5,1.28826339]
[1772560537829,0.00368776,1976.3,1975.7,1.28826339]
[1772560539736,6.622,1976.7,1975.9,1.28826339]
[1772560539935,1.25848477,1977.0,1975.9,1.28826339]
[1772560540332,1.25848477,1977.3,1976.1,1.28826339]
[1772560540636,1.26362261,1977.3,1976.1,1.28826339]
[1772560540937,0.00513784,1977.3,1976.3,1.28826339]
[1772560541436,1.26362261,1977.3,1976.3,1.28826339]
[1772560541636,1.26362261,1977.3,1976.5,1.28826339]
[1772560542435,0.00513784,1977.3,1976.7,1.28826339]
[1772560542634,1.25848477,1977.9,1976.7,1.28826339]
[1772560543338,1.25848477,1977.9,1976.9,1.28826339]
[1772560543834,1.2636208,1977.9,1977.1,1.28826339]
[1772560544133,0.00513603,1977.9,1977.3,1.28826339]
[1772560544633,1.25848477,1978.5,1977.5,1.28826339]
[1772560545438,1.25848477,1978.7,1977.7,1.28826339]
[1772560545637,1.26457174,1978.7,1977.7,1.28826339]
[1772560548535,0.00608697,1978.7,1977.9,1.23780788]
[1772560549838,7.83415536,1979.2,1978.1,1.23780788]
[1772560550339,1.21215536,1979.2,1978.3,1.23780788]
[1772560550733,1.21215536,1979.4,1978.3,1.23780788]
[1772560550938,1.21572054,1979.4,1978.3,1.2418159]
[1772560551138,1.21215536,1979.2,1978.3,1.2418159]
[1772560553242,1.21215536,1979.0,1978.3,1.2418159]
[1772560553936,0.00356518,1979.4,1978.3,1.2418159]
[1772560554135,0.00356518,1979.4,1978.5,1.23780788]
[1772560554335,1.21572054,1979.4,1978.5,1.23780788]
[1772560554840,1.21572054,1979.4,1978.3,1.2418159]
[1772560555441,1.21572054,1979.4,1978.3,1.4945359]
[1772560559440,0.00356518,1979.4,1978.8,1.23780788]
[1772560559640,1.21215536,1979.8,1978.8,1.23780788]
[1772560560646,1.21647181,1979.8,1978.8,1.23780788]
[1772560560845,1.21647181,1979.8,1978.3,0.00400802]
[1772560560846,1.21647181,1979.8,1978.4,1.23780788]
[1772560561046,1.21215536,1979.6,1978.4,1.23780788]
[1772560561650,1.21215536,1979.6,1978.6,1.23780788]
[1772560562553,1.21215536,1979.6,1978.3,0.00400802]
[1772560562554,1.21215536,1979.5,1978.4,1.23780788]
[1772560563048,1.46473536,1979.5,1978.4,1.23780788]
[1772560564049,1.46473536,1979.5,1978.3,0.00400802]
[1772560564250,1.21215536,1979.2,1978.3,0.00400802]
[1772560565249,1.21215536,1979.2,1978.3,1.2418159]
[1772560567348,1.21647181,1979.8,1978.8,1.23780788]
[1772560567554,1.21215536,1980.1,1979.0,1.23780788]
[1772560567855,4.17850857,1980.5,1979.3,1.23780788]
[1772560567856,1.21215536,1980.5,1979.3,1.23780788]
[1772560568352,1.21215536,1980.5,1979.5,1.23780788]
[1772560568553,1.21215536,1980.5,1979.4,0.25259]
[1772560568554,0.00607644,1980.5,1979.9,1.23780788]
[1772560568856,0.00607644,1980.5,1979.9,1.24191494]
[1772560569055,1.2182318,1980.5,1979.9,0.00410706]
[1772560569457,1.2182318,1980.5,1979.9,1.24191494]
[1772560569756,1.21215536,1980.4,1979.3,1.23780788]
[1772560570554,1.21215536,1980.4,1979.3,1.24320258]
[1772560571462,0.00607644,1980.5,1979.7,1.23780788]
[1772560572260,1.2182318,1980.5,1979.7,1.23780788]
[1772560572455,0.00607644,1980.5,1979.7,1.23780788]
[1772560573160,1.2182318,1980.5,1979.7,1.23780788]
[1772560573559,0.00607644,1980.5,1979.7,1.23780788]
[1772560574857,1.21215536,1980.4,1979.4,1.23780788]
[1772560575359,1.21215536,1980.2,1979.4,1.23780788]
[1772560576154,1.21215536,1980.4,1979.6,1.23780788]
[1772560576361,0.00607644,1980.5,1979.6,1.23780788]
[1772560576559,1.2182318,1980.5,1979.6,1.23780788]
[1772560578159,1.30007409,1980.3,1979.3,1.28974189]
[1772560578863,6.37241284,1980.2,1979.3,1.28974189]
[1772560579164,1.30007409,1980.1,1979.3,1.28974189]
[1772560579364,6.94205486,1980.5,1979.5,1.28434719]
[1772560579365,1.30615053,1980.5,1979.5,1.28434719]
[1772560579564,6.37402792,1980.4,1979.5,1.28434719]
[1772560580160,2.33419857,1981.0,1980.2,1.20818958]
[1772560580365,1.22811061,1981.5,1980.2,1.46065958]
[1772560580566,1.22811061,1981.3,1980.3,1.20818958]
[1772560581163,1.22811061,1981.3,1980.5,1.20818958]
[1772560581164,1.2327884,1981.3,1980.5,1.20818958]
[1772560583064,1.22811061,1981.8,1980.5,7.41845958]
[1772560583265,1.22811061,1981.8,1981.1,1.20818958]
[1772560583772,1.22811061,1981.8,1980.8,1.20818958]
[1772560584165,1.23316205,1981.8,1980.8,1.21249248]
[1772560584765,1.23316205,1981.8,1980.8,0.0043029]
[1772560585471,1.22811061,1981.5,1980.8,0.0043029]
[1772560586572,1.22811061,1981.4,1980.3,1.20818958]
[1772560586973,1.22811061,1981.2,1980.1,1.20818958]
[1772560587571,1.22811061,1981.2,1980.1,1.21368777]
[1772560590281,1.22811061,1981.4,1980.3,1.20818958]
[1772560591280,1.22811061,1981.2,1980.1,1.21368777]
[1772560592582,1.22811061,1981.2,1980.2,1.20818958]
[1772560592884,1.22811061,1981.2,1980.4,1.20818958]
[1772560593479,1.22811061,1981.4,1980.4,1.20818958]
[1772560594886,1.22811061,1981.4,1980.6,1.20818958]
[1772560595082,1.22811061,1981.7,1980.8,1.20818958]
[1772560597181,1.22811061,1981.7,1980.7,1.46060958]
[1772560597588,0.00505144,1981.8,1980.7,1.46060958]
[1772560598488,1.23316205,1981.8,1980.7,1.46060958]
[1772560598679,1.22811061,1982.5,1981.6,1.20818958]
[1772560598880,1.22811061,1982.9,1981.8,1.20818958]
[1772560599080,1.22811061,1983.1,1981.8,1.20818958]
[1772560599283,1.22811061,1983.0,1982.2,1.20818958]
[1772560599481,1.22811061,1983.0,1982.1,0.25224]
[1772560599684,1.23353789,1983.0,1982.1,1.46607253]
[1772560600786,1.23353789,1983.0,1982.1,1.21383253]
[1772560600987,1.23353789,1983.0,1982.1,0.00564295]
[1772560601689,3.99100774,1983.0,1982.1,0.00564295]
[1772560601891,1.22811061,1982.9,1982.1,0.00564295]
[1772560604286,1.22811061,1982.6,1981.2,1.20818958]
[1772560604488,1.22811061,1982.4,1981.2,1.20818958]
[1772560605295,1.22811061,1982.4,1981.2,1.21423165]
[1772560606494,1.22811061,1982.4,1981.4,1.20818958]
[1772560607294,1.22811061,1982.3,1981.2,1.21423165]
[1772560608294,1.22811061,1982.3,1981.2,1.46658165]
[1772560609694,1.27886517,1982.1,1981.2,1.21423165]
[1772560611896,1.27886517,1982.1,1981.2,0.00604207]
[1772560612300,1.27886517,1982.1,1981.2,1.30147323]
[1772560612799,1.27886517,1982.1,1981.2,1.55382323]
[1772560613390,1.27886517,1981.9,1980.1,7.74830588]
[1772560613592,1.27886517,1981.2,1980.2,1.29543116]
[1772560613895,1.27886517,1981.0,1980.2,1.29543116]
[1772560614098,7.89186517,1981.1,1980.2,1.29543116]
[1772560614594,1.27886517,1981.0,1980.2,1.30035142]
[1772560620305,1.27886517,1981.8,1980.4,1.29543116]
[1772560620505,1.27886517,1981.6,1980.6,1.29543116]
[1772560621406,1.28330182,1981.6,1980.6,1.29543116]
[1772560622802,1.28330182,1981.6,1980.3,1.29543116]
[1772560623010,1.27886517,1981.5,1980.5,1.29543116]
[1772560623502,0.00443665,1981.6,1980.7,1.29543116]
[1772560623708,0.00443665,1981.6,1980.9,1.29543116]
[1772560624706,1.28330182,1981.6,1980.9,1.29543116]
[1772560624912,1.28330182,1981.6,1980.7,1.29543116]
[1772560625707,1.28330182,1981.6,1980.4,1.29543116]
[1772560625905,1.53561182,1981.6,1980.4,1.29543116]
[1772560626108,1.27886517,1981.4,1980.2,1.30035142]
[1772560626308,1.27886517,1981.2,1980.2,1.30035142]
[1772560627505,1.27886517,1981.5,1980.5,1.29543116]
[1772560627708,1.27886517,1981.5,1980.7,1.29543116]
[1772560628801,1.27886517,1981.5,1980.8,0.25241]
[1772560629002,0.00443665,1981.6,1980.9,1.29543116]
[1772560629204,0.00443665,1981.6,1981.1,1.29543116]
[1772560629511,1.28330182,1981.6,1981.1,1.29543116]
[1772560630209,0.00443665,1981.6,1981.1,1.29543116]
[1772560631204,1.28330182,1981.6,1981.1,1.29543116]
[1772560632512,0.00443665,1981.6,1981.1,1.29543116]
[1772560634309,1.27886517,1982.1,1981.3,1.29543116]
[1772560634514,1.27886517,1982.4,1981.3,1.29543116]
[1772560634711,1.27886517,1982.4,1981.5,1.29543116]
[1772560634911,1.27886517,1982.4,1981.7,1.29543116]
[1772560635107,1.27886517,1982.7,1981.9,1.29543116]
[1772560635414,1.28303836,1982.7,1981.9,1.30137957]
[1772560638718,1.28303836,1982.7,1981.9,0.00594841]
[1772560639318,1.28303836,1982.7,1981.9,1.26419001]
[1772560640214,1.28303836,1982.7,1981.9,0.00594841]
[1772560640614,1.28303836,1982.7,1981.9,1.21662073]
[1772560640815,1.28303836,1982.7,1981.9,0.00594841]
[1772560641324,1.28303836,1982.7,1981.9,1.21662073]
[1772560642409,1.28303836,1982.7,1981.9,0.00594841]
[1772560642811,1.28303836,1982.7,1981.9,1.21662073]
[1772560643318,7.90339501,1982.6,1981.9,1.21662073]
[1772560643717,1.29039501,1982.5,1981.9,1.21662073]
[1772560647710,1.2945682,1982.7,1982.0,0.25226]
[1772560648017,1.2945682,1982.7,1982.1,1.21067232]
[1772560648320,1.2945682,1982.7,1981.9,0.00594841]
[1772560648527,1.2945682,1982.7,1981.9,1.46888073]
[1772560652523,1.2945682,1982.7,1981.9,0.25820841]
[1772560652720,1.2945682,1982.7,1981.9,0.00594841]
[1772560653721,1.2945682,1982.7,1981.9,1.21662073]
[1772560654322,1.2945682,1982.7,1981.9,0.00594841]
[1772560654826,1.2945682,1982.7,1981.9,1.46888073]
[1772560655725,6.613e-05,1982.7,1982.3,1.21067232]
[1772560655926,6.613e-05,1982.7,1981.9,0.00594841]
[1772560655927,1.29039501,1983.1,1982.5,1.21067232]
[1772560656820,1.29413227,1983.1,1982.5,1.21067232]
[1772560657626,0.00373726,1983.1,1982.5,1.21067232]
[1772560658317,1.29413227,1983.1,1982.5,1.21067232]
[1772560659318,4.20362694,1983.5,1982.7,1.21067232]
[1772560659522,1.29039501,1983.6,1982.9,1.21067232]
[1772560660324,1.29681636,1983.6,1983.1,1.21067232]
[1772560660529,0.00642135,1983.6,1983.3,1.21067232]
[1772560660829,1.29039501,1983.9,1983.3,0.00548862]
[1772560661027,1.29039501,1983.7,1983.3,0.00548862]
[1772560661232,1.29039501,1983.7,1983.1,1.21067232]
[1772560662230,1.29677476,1983.7,1983.1,1.21619584]
[1772560663621,0.00637975,1983.7,1983.1,1.46830584]
[1772560664425,1.29677476,1983.7,1983.1,1.46830584]
[1772560664622,6.44219041,1983.6,1982.6,0.25217]
[1772560664824,1.29039501,1983.4,1982.2,1.21067232]
[1772560665125,1.29039501,1982.9,1981.7,1.21067232]
[1772560665330,1.29039501,1982.7,1981.7,1.21067232]
[1772560665728,1.29039501,1982.7,1981.7,1.2167472]
[1772560666426,1.29039501,1982.9,1981.9,1.21067232]
[1772560666629,1.29039501,1982.7,1982.0,0.25226]
[1772560666826,1.29039501,1982.7,1982.0,1.46293232]
[1772560668136,1.29183631,1982.9,1982.0,1.46293232]
[1772560668334,1.29183631,1982.7,1982.0,1.46293232]
[1772560669234,1.29183631,1982.7,1981.8,1.30721074]
[1772560670035,1.29183631,1983.0,1982.0,1.30721074]
[1772560670224,1.29183631,1983.0,1981.8,6.20626]
[1772560670225,1.29183631,1983.0,1982.2,1.30721074]
[1772560671029,6.44634301,1982.9,1981.8,1.30721074]
[1772560671236,1.29183631,1982.8,1981.8,1.30721074]
[1772560671536,1.29183631,1982.6,1981.8,1.30721074]
[1772560673930,1.29183631,1982.6,1981.7,0.00607488]
[1772560674137,1.29183631,1982.2,1981.4,1.30721074]
[1772560674334,1.29183631,1982.0,1981.4,1.30721074]
[1772560674734,1.29183631,1982.0,1981.2,1.30721074]
[1772560675337,1.29799889,1982.0,1981.2,1.31314965]
[1772560675740,0.00616258,1982.0,1981.4,1.30721074]
[1772560676339,1.29799889,1982.0,1981.4,1.30721074]
[1772560678846,0.00616258,1982.0,1981.4,1.30721074]
[1772560679045,1.29799889,1982.0,1981.6,1.30721074]
[1772560679841,1.29799889,1982.0,1981.2,0.00593891]
[1772560680041,1.29799889,1982.0,1981.2,1.31314965]
[1772560680345,1.29799889,1982.0,1981.4,1.30721074]
[1772560680547,7.90283631,1982.4,1981.6,1.30721074]
[1772560680842,1.29183631,1982.3,1981.6,1.30721074]
[1772560681043,1.29183631,1982.3,1981.2,6.21401891]
[1772560681044,1.29183631,1982.3,1981.2,1.31314965]
[1772560681245,1.29183631,1982.1,1981.2,1.31314965]
[1772560681445,1.29683447,1982.1,1981.4,1.30721074]
[1772560682150,1.29683447,1982.1,1981.5,1.55953074]
[1772560682548,0.00499816,1982.1,1981.5,1.55953074]
[1772560682949,1.29183631,1982.5,1981.5,1.55953074]
[1772560683847,1.2961644,1982.5,1981.5,1.55953074]
[1772560686051,1.2961644,1982.5,1981.8,0.25227]
[1772560686251,0.00432809,1982.5,1981.9,1.30721074]
[1772560686454,1.2961644,1982.5,1981.9,1.30721074]
[1772560688256,1.2961644,1982.5,1981.8,0.25227]
[1772560688652,1.2961644,1982.5,1981.5,1.30721074]
[1772560688856,1.29183631,1982.3,1981.5,1.30721074]
[1772560689159,1.29183631,1982.3,1981.6,1.55952074]
[1772560690160,1.29183631,1982.9,1982.0,1.30721074]
[1772560690953,1.29183631,1982.9,1982.3,1.30721074]
[1772560691154,1.29183631,1983.5,1982.6,0.25218]
[1772560691359,1.29183631,1983.3,1982.6,1.55939074]
[1772560692256,1.29796128,1983.3,1982.6,0.00613446]
[1772560692657,1.29183631,1982.8,1981.7,1.30721074]
[1772560692855,1.29183631,1982.6,1981.7,1.30721074]
[1772560693058,1.29183631,1982.6,1981.5,1.30721074]
[1772560693365,1.29183631,1982.4,1981.3,1.30721074]
[1772560693559,1.29183631,1982.2,1981.3,1.31343878]